bitfinex/quotes_BTCUSD_20250108
["timestamp","ask_amount","ask_price","bid_price","bid_amount"]
[1736350379519,1.32729371,94923.0,94922.0,4e-08]
[1736350379723,1.33129371,94923.0,94922.0,4e-08]
[1736350379948,1.29129637,94923.0,94922.0,4e-08]
[1736350380368,0.73102413,94923.0,94922.0,4e-08]
[1736350380584,0.53021,94923.0,94922.0,4e-08]
[1736350380806,0.40910478,94923.0,94922.0,4e-08]
[1736350381009,0.24149625,94923.0,94922.0,4e-08]
[1736350381222,0.13653322,94923.0,94922.0,4e-08]
[1736350381425,0.23787658,94923.0,94922.0,4e-08]
[1736350381600,0.13253322,94923.0,94922.0,4e-08]
[1736350381813,0.34187658,94923.0,94922.0,4e-08]
[1736350382016,0.23683298,94923.0,94922.0,4e-08]
[1736350382419,0.13153322,94923.0,94922.0,0.00200004]
[1736350382599,0.13257682,94923.0,94922.0,0.00200004]
[1736350382800,0.04817357,94923.0,94922.0,0.08100004]
[1736350383107,0.1,94956.0,94922.0,0.09900711]
[1736350383287,0.21069,94926.0,94922.0,0.09900711]
[1736350383490,0.52665,94926.0,94922.0,0.08200004]
[1736350383691,0.39855,94926.0,94925.0,0.05127065]
[1736350384099,0.39855,94926.0,94925.0,0.36626241]
[1736350384100,0.22845352,94926.0,94925.0,0.36626241]
[1736350384302,0.210647,94946.0,94939.0,0.05127065]
[1736350384921,0.210634,94951.0,94939.0,0.05127065]
[1736350385100,0.210626,94955.0,94941.0,0.05127065]
[1736350385312,0.210636,94951.0,94942.0,0.08595985]
[1736350385517,0.5266,94955.0,94942.0,0.05127065]
[1736350385716,0.5266,94955.0,94934.0,0.421343]
[1736350385717,0.21063,94953.0,94943.0,0.05127065]
[1736350385944,0.94786,94953.0,94943.0,0.05127065]
[1736350386146,0.73723,94953.0,94950.0,0.02070259]
[1736350386523,0.211634,94951.0,94950.0,0.02070259]
[1736350386728,0.738234,94951.0,94950.0,0.02070259]
[1736350387643,0.84253376,94951.0,94950.0,0.02070259]
[1736350387831,0.99153376,94951.0,94950.0,0.02070259]
[1736350388698,0.888234,94951.0,94950.0,0.02570259]
[1736350388857,0.738234,94951.0,94950.0,0.02770259]
[1736350389400,0.4855229,94951.0,94950.0,0.07697324]
[1736350389640,0.4009178,94951.0,94950.0,0.07967056]
[1736350389817,0.35986724,94951.0,94950.0,0.07967056]
[1736350390024,0.35986724,94951.0,94950.0,0.08548503]
[1736350390229,0.35886724,94951.0,94950.0,0.07967056]
[1736350390385,0.56950124,94951.0,94950.0,0.07278771]
[1736350390587,0.56950124,94951.0,94950.0,0.02151706]
[1736350390790,0.56950124,94951.0,94950.0,0.01770259]
[1736350391668,0.57050124,94951.0,94950.0,0.01770259]
[1736350392008,0.56950124,94951.0,94950.0,0.01770259]
[1736350392203,0.56950124,94951.0,94950.0,0.01570259]
[1736350392412,0.57050124,94951.0,94950.0,0.02170259]
[1736350392628,0.56950124,94951.0,94950.0,0.01770259]
[1736350392812,0.57050124,94951.0,94950.0,0.02759991]
[1736350393014,0.57050124,94951.0,94950.0,0.01870259]
[1736350393238,0.56950124,94951.0,94950.0,0.01570259]
[1736350393535,0.56950124,94951.0,94950.0,0.01770259]
[1736350394689,0.674801,94951.0,94950.0,0.02370259]
[1736350394890,0.673801,94951.0,94950.0,0.01770259]
[1736350395331,0.824801,94951.0,94950.0,0.02170259]
[1736350395507,0.823801,94951.0,94950.0,0.01570259]
[1736350395724,0.83413326,94951.0,94950.0,0.01570259]
[1736350395919,0.83413326,94951.0,94950.0,0.01670259]
[1736350396291,0.83413326,94951.0,94950.0,0.01570259]
[1736350396689,1.23513326,94951.0,94950.0,5.9e-07]
[1736350396817,0.83513326,94951.0,94950.0,5.9e-07]
[1736350397017,0.83613326,94951.0,94950.0,5.9e-07]
[1736350398274,0.72150124,94951.0,94950.0,5.9e-07]
[1736350398497,0.57050124,94951.0,94950.0,5.9e-07]
[1736350398678,0.57150124,94951.0,94950.0,5.9e-07]
[1736350399257,0.57050124,94951.0,94950.0,5.9e-07]
[1736350399698,0.57050124,94951.0,94950.0,0.00100059]
[1736350399970,0.56950124,94951.0,94950.0,5.9e-07]
[1736350400534,0.674801,94951.0,94950.0,5.9e-07]
[1736350400925,0.210682,94930.0,94923.0,0.05127065]
[1736350401081,0.21069,94927.0,94924.0,0.00985707]
[1736350401456,0.421403,94921.0,94918.0,0.04745246]
[1736350402176,0.210701,94921.0,94918.0,0.04745246]
[1736350402378,0.210701,94921.0,94920.0,0.02105217]
[1736350402578,0.78027024,94921.0,94920.0,0.02105217]
[1736350404725,0.78127024,94921.0,94920.0,0.02105217]
[1736350405135,0.78027024,94921.0,94920.0,0.02105217]
[1736350405550,0.78027024,94921.0,94920.0,0.02505217]
[1736350405764,0.78027024,94921.0,94920.0,0.02105217]
[1736350405971,0.78027024,94921.0,94920.0,0.02505217]
[1736350406608,0.81144387,94921.0,94920.0,0.02505217]
[1736350407653,0.81144387,94921.0,94920.0,0.02105217]
[1736350407833,0.81144387,94921.0,94920.0,0.02505217]
[1736350408039,0.35886724,94921.0,94920.0,0.02505217]
[1736350408237,0.35886724,94921.0,94920.0,0.02105217]
[1736350408444,0.7109942,94921.0,94920.0,0.02505217]
[1736350408677,0.7109942,94921.0,94920.0,0.004]
[1736350409326,0.360703,94920.0,94918.0,0.00015246]
[1736350409528,0.28649056,94919.0,94918.0,0.00015246]
[1736350409779,0.6443142,94919.0,94918.0,0.00015246]
[1736350410442,0.7443142,94919.0,94918.0,4.6e-07]
[1736350411067,0.9501142,94919.0,94918.0,4.6e-07]
[1736350411309,0.55,94916.0,94915.0,0.00582862]
[1736350411514,1.0443142,94916.0,94915.0,0.00582862]
[1736350411715,1.09304355,94916.0,94915.0,0.00582862]
[1736350412066,0.210781,94885.0,94882.0,8.53e-05]
[1736350412273,0.210781,94885.0,94884.0,0.00058919]
[1736350412764,0.56964824,94885.0,94884.0,0.00058919]
[1736350413414,0.35886724,94885.0,94884.0,0.02181754]
[1736350413607,0.33728949,94885.0,94884.0,0.02913489]
[1736350413841,0.33728949,94885.0,94884.0,0.02181754]
[1736350414216,0.48728949,94885.0,94884.0,0.02181754]
[1736350415166,0.59854171,94885.0,94884.0,0.02181754]
[1736350415567,0.69301434,94885.0,94884.0,0.02581754]
[1736350415775,0.69201434,94885.0,94884.0,0.00058919]
[1736350416390,0.42826212,94885.0,94884.0,0.00058919]
[1736350416602,0.42726212,94885.0,94884.0,0.00058919]
[1736350416747,0.33378949,94885.0,94884.0,0.00058919]
[1736350416959,0.33578949,94885.0,94884.0,0.00058919]
[1736350417181,0.33678949,94885.0,94884.0,0.00058919]
[1736350417584,0.33578949,94885.0,94884.0,0.00058919]
[1736350417911,0.44008925,94885.0,94884.0,0.00058919]
[1736350418228,0.33578949,94885.0,94884.0,0.00058919]
[1736350418545,0.33378949,94885.0,94884.0,0.00058919]
[1736350418724,0.35431821,94885.0,94884.0,0.00058919]
[1736350419356,0.45861797,94885.0,94884.0,0.00058919]
[1736350419498,0.43808925,94885.0,94884.0,0.00058919]
[1736350421154,0.59008925,94885.0,94884.0,0.00058919]
[1736350421797,0.58808925,94885.0,94884.0,0.00058919]
[1736350421944,0.58908925,94885.0,94884.0,0.00058919]
[1736350422144,1.06992788,94885.0,94884.0,0.00058919]
[1736350422344,0.6388186,94885.0,94884.0,0.00058919]
[1736350422573,0.7065386,94885.0,94884.0,0.00058919]
[1736350422931,0.8055386,94885.0,94884.0,0.00058919]
[1736350423132,0.8055386,94885.0,94882.0,8.53e-05]
[1736350423133,0.42172935,94883.0,94882.0,4.9e-07]
[1736350423366,0.42172935,94883.0,94831.0,0.0487]
[1736350423367,0.0485,94831.0,94827.0,8.53e-05]
[1736350423614,0.0485,94831.0,94800.0,0.10516]
[1736350423615,0.210968,94801.0,94800.0,0.10516]
[1736350423779,0.06973405,94796.0,94733.0,0.211118]
[1736350423979,0.15,94800.0,94785.0,0.11540467]
[1736350423980,0.210988,94792.0,94785.0,0.11540467]
[1736350424165,0.11064147,94791.0,94785.0,0.11540467]
[1736350424363,0.11064147,94791.0,94785.0,0.02130966]
[1736350424364,0.211001,94786.0,94785.0,0.02130966]
[1736350424564,0.54479049,94786.0,94785.0,0.02130966]
[1736350424773,0.54479049,94786.0,94785.0,0.01630966]
[1736350425765,0.33378949,94786.0,94785.0,0.15098421]
[1736350425940,0.26718478,94786.0,94785.0,0.25528397]
[1736350426154,0.26718478,94786.0,94785.0,0.23290554]
[1736350426155,0.61123463,94786.0,94785.0,0.23290554]
[1736350426282,0.56991769,94786.0,94785.0,0.23290554]
[1736350426691,0.22586784,94786.0,94785.0,0.23290554]
[1736350426894,0.1389555,94786.0,94785.0,0.10429976]
[1736350427099,0.07581296,94786.0,94785.0,0.25272531]
[1736350427295,0.11818196,94790.0,94789.0,0.310994]
[1736350427506,0.13942265,94794.0,94793.0,0.210986]
[1736350427709,0.11542265,94794.0,94793.0,0.58843833]
[1736350427916,0.12739005,94797.0,94796.0,0.1]
[1736350428117,0.16383668,94801.0,94800.0,0.38397]
[1736350428318,0.16383668,94801.0,94800.0,0.48826976]
[1736350428516,0.210931,94818.0,94800.0,0.21676]
[1736350428718,0.210931,94818.0,94800.0,0.32105976]
[1736350428953,0.210931,94818.0,94807.0,0.210954]
[1736350429182,0.205931,94818.0,94801.0,0.05220418]
[1736350429411,0.52632267,94818.0,94801.0,0.15650394]
[1736350429618,0.48544267,94818.0,94806.0,0.1]
[1736350429820,0.48544267,94818.0,94817.0,0.360932]
[1736350429955,0.48544267,94818.0,94817.0,0.56523176]
[1736350430158,0.210846,94856.0,94820.0,0.1]
[1736350430355,0.52721,94856.0,94836.0,0.210889]
[1736350430581,0.210854,94853.0,94836.0,0.210889]
[1736350430784,0.210854,94852.0,94838.0,0.210885]
[1736350430959,0.10534336,94851.0,94820.0,0.06676]
[1736350431169,0.210878,94842.0,94821.0,0.10429976]
[1736350431380,0.210859,94850.0,94828.0,0.210907]
[1736350431613,0.52721,94851.0,94836.0,0.02142792]
[1736350431979,0.52721,94851.0,94845.0,0.210868]
[1736350432180,0.52721,94851.0,94845.0,0.209868]
[1736350432396,0.52721,94851.0,94849.0,0.210859]
[1736350432603,0.52721,94851.0,94850.0,0.12729976]
[1736350432775,0.52721,94851.0,94850.0,0.27629976]
[1736350432986,0.52721,94851.0,94850.0,0.37708954]
[1736350433560,0.52721,94851.0,94850.0,0.37724211]
[1736350434330,0.52721,94851.0,94850.0,0.38286619]
[1736350434607,0.52721,94851.0,94850.0,0.48186619]
[1736350434746,0.52721,94851.0,94850.0,0.38186619]
[1736350434975,0.52721,94851.0,94850.0,0.00577665]
[1736350435215,0.52821,94851.0,94850.0,0.00015257]
[1736350435415,0.52721,94851.0,94850.0,0.00015257]
[1736350435868,0.52821,94851.0,94850.0,0.00015257]
[1736350436117,0.52721,94851.0,94850.0,0.00015257]
[1736350436336,0.52721,94851.0,94850.0,0.02795152]
[1736350436542,0.52721,94851.0,94850.0,0.00577665]
[1736350436958,0.52721,94851.0,94850.0,0.00015257]
[1736350437595,0.52721,94851.0,94850.0,0.01315257]
[1736350438012,0.52721,94851.0,94850.0,0.00415257]
[1736350438209,0.52721,94851.0,94850.0,0.00915257]
[1736350438210,0.52821,94851.0,94850.0,0.00915257]
[1736350438415,0.52821,94851.0,94850.0,0.32731133]
[1736350438685,0.52721,94851.0,94850.0,0.35104246]
[1736350438829,0.46514243,94851.0,94850.0,0.36066654]
[1736350439070,0.46514243,94851.0,94850.0,0.53366654]
[1736350439446,0.46514243,94851.0,94850.0,0.52966654]
[1736350439951,0.46514243,94851.0,94850.0,0.24936678]
[1736350440352,0.46514243,94851.0,94850.0,0.25136678]
[1736350440746,0.46514243,94851.0,94850.0,0.24936678]
[1736350440944,0.46514243,94851.0,94850.0,0.52666654]
[1736350441142,0.46514243,94851.0,94850.0,0.71996654]
[1736350441342,0.41336562,94851.0,94850.0,0.81996654]
[1736350441527,0.32613073,94851.0,94850.0,0.80896654]
[1736350441924,0.27325156,94851.0,94850.0,0.62096654]
[1736350442127,0.27325156,94851.0,94850.0,0.82096654]
[1736350442335,0.27325156,94851.0,94850.0,0.71196654]
[1736350442565,0.27325156,94851.0,94850.0,0.81196654]
[1736350442806,0.27325156,94851.0,94850.0,0.72096654]
[1736350443016,0.27325156,94851.0,94850.0,0.81196654]
[1736350443249,0.27325156,94851.0,94850.0,0.70896654]
[1736350443729,0.27425156,94851.0,94850.0,0.71496654]
[1736350443968,0.27425156,94851.0,94850.0,0.81496654]
[1736350444267,0.27325156,94851.0,94850.0,0.80896654]
[1736350444509,0.27425156,94851.0,94850.0,0.81596654]
[1736350444759,0.09319229,94897.0,94850.0,0.81596654]
[1736350444760,0.09319229,94897.0,94866.0,0.25]
[1736350445001,0.09319229,94893.0,94867.0,0.17322971]
[1736350445246,0.0010436,94892.0,94867.0,0.06892995]
[1736350445489,0.210771,94890.0,94870.0,0.023]
[1736350445726,0.210774,94888.0,94872.0,0.023]
[1736350445976,0.210795,94879.0,94871.0,0.00552831]
[1736350446231,0.0010436,94878.0,94873.0,0.00551919]
[1736350446481,0.210805,94874.0,94866.0,0.004]
[1736350446737,0.210818,94869.0,94866.0,0.004]
[1736350446980,0.421636,94869.0,94866.0,0.004]
[1736350447625,0.421636,94869.0,94850.0,0.22138976]
[1736350447769,0.210831,94863.0,94850.0,0.22138976]
[1736350448434,0.10534336,94862.0,94850.0,0.00015257]
[1736350448671,0.2273,94852.0,94851.0,0.00561951]
[1736350448878,0.210857,94851.0,94850.0,0.00015257]
[1736350449128,0.84230676,94851.0,94850.0,0.00015257]
[1736350449345,0.88770676,94851.0,94850.0,0.00015257]
[1736350449532,0.95766676,94851.0,94850.0,0.00015257]
[1736350449765,0.783407,94851.0,94850.0,0.00015257]
[1736350450541,0.52715,94851.0,94850.0,0.00015257]
[1736350450727,0.52715,94851.0,94850.0,0.15802851]
[1736350450924,0.52715,94851.0,94850.0,0.17916811]
[1736350451143,0.52715,94851.0,94850.0,0.08386835]
[1736350451346,0.52715,94851.0,94850.0,0.07486835]
[1736350452141,0.52715,94851.0,94850.0,0.18316811]
[1736350452603,0.34984299,94851.0,94850.0,0.18316811]
[1736350452810,0.32795402,94851.0,94850.0,0.17916811]
[1736350453012,0.32895402,94851.0,94850.0,0.18916811]
[1736350453209,0.32895402,94851.0,94850.0,0.16576635]
[1736350453437,0.32895402,94851.0,94850.0,0.03846659]
[1736350453653,0.32895402,94851.0,94850.0,0.01732699]
[1736350453860,0.32895402,94851.0,94850.0,0.01015257]
[1736350454229,0.32795402,94851.0,94850.0,0.00415257]
[1736350454427,0.71045378,94851.0,94850.0,0.00415257]
[1736350454633,0.71045378,94851.0,94850.0,0.00615257]
[1736350455476,0.71045378,94851.0,94850.0,0.00215257]
[1736350455680,0.71045378,94851.0,94850.0,0.00015257]
[1736350456182,0.210933,94817.0,94812.0,8.54e-05]
[1736350456479,0.210881,94840.0,94812.0,0.000238]
[1736350456621,0.210885,94838.0,94812.0,0.000238]
[1736350456831,0.210918,94824.0,94812.0,0.000238]
[1736350457038,0.53887202,94824.0,94813.0,0.02766435]
[1736350457232,0.32795402,94824.0,94814.0,0.023]
[1736350457445,0.32795402,94824.0,94819.0,0.210927]
[1736350457653,0.32795402,94824.0,94816.0,0.023]
[1736350457851,0.210919,94823.0,94820.0,0.00737974]
[1736350458060,0.210931,94818.0,94812.0,0.000238]
[1736350458266,0.32795402,94818.0,94812.0,0.000238]
[1736350458535,0.21094,94814.0,94812.0,0.000238]
[1736350458749,0.32795402,94818.0,94812.0,0.000238]
[1736350458868,0.32795402,94818.0,94816.0,0.004]
[1736350460297,0.53888502,94818.0,94816.0,0.004]
[1736350460469,0.32795402,94818.0,94812.0,0.000238]
[1736350460674,0.001,94814.0,94812.0,0.006238]
[1736350461295,0.210941,94813.0,94812.0,0.000238]
[1736350461495,0.53889502,94813.0,94812.0,0.003238]
[1736350462124,0.53889502,94813.0,94812.0,0.000238]
[1736350462304,0.64319478,94813.0,94812.0,0.004238]
[1736350462506,0.79319478,94813.0,94812.0,0.004238]
[1736350462700,0.82423937,94813.0,94812.0,0.004238]
[1736350462906,0.92423937,94813.0,94812.0,0.013238]
[1736350463122,1.02853913,94813.0,94812.0,0.013238]
[1736350463326,1.02853913,94813.0,94812.0,0.004238]
[1736350463534,1.02853913,94813.0,94812.0,0.011238]
[1736350463535,0.82423937,94813.0,94812.0,0.011238]
[1736350463729,0.99371937,94813.0,94812.0,0.007238]
[1736350463929,0.360954,94807.0,94806.0,0.0077115]
[1736350464184,0.79320778,94807.0,94806.0,0.00786362]
[1736350464970,0.53890802,94807.0,94806.0,0.00786362]
[1736350465303,0.64320778,94807.0,94806.0,0.00786362]
[1736350465659,0.89750754,94807.0,94806.0,0.00786362]
[1736350465866,1.02851036,94807.0,94806.0,0.00786362]
[1736350466249,0.337608,94783.0,94778.0,8.54e-05]
[1736350466377,0.66556202,94783.0,94778.0,8.54e-05]
[1736350466585,0.76986178,94783.0,94778.0,8.54e-05]
[1736350467019,0.58686202,94783.0,94778.0,8.54e-05]
[1736350467464,0.72629062,94783.0,94782.0,4.9574797]
[1736350467620,0.83059038,94783.0,94782.0,4.42904529]
[1736350467821,0.99121542,94783.0,94782.0,4.42904529]
[1736350468227,0.99121542,94783.0,94782.0,4.43004529]
[1736350468671,0.85178682,94783.0,94782.0,4.43004529]
[1736350469111,0.87112478,94783.0,94782.0,4.43004529]
[1736350469432,0.87112478,94783.0,94782.0,4.43404529]
[1736350469605,0.72112478,94783.0,94782.0,4.43404529]
[1736350469842,0.82542454,94783.0,94782.0,4.43404529]
[1736350470024,0.72112478,94783.0,94782.0,4.43404529]
[1736350470228,0.72112478,94783.0,94782.0,4.43304529]
[1736350470454,1.12312478,94783.0,94782.0,4.34864129]
[1736350470647,1.02312478,94783.0,94782.0,4.32754029]
[1736350470855,1.12742454,94783.0,94782.0,4.32754029]
[1736350471071,1.12742454,94783.0,94782.0,4.32499363]
[1736350471216,1.12542454,94783.0,94782.0,4.25769063]
[1736350471420,1.37742454,94783.0,94782.0,4.21548863]
[1736350471623,1.35808658,94783.0,94782.0,4.21548863]
[1736350472026,1.35808658,94783.0,94782.0,3.98188363]
[1736350472027,1.60720658,94783.0,94782.0,3.98188363]
[1736350472330,1.13768658,94783.0,94782.0,3.98188363]
[1736350472532,1.00290682,94783.0,94782.0,3.98188363]
[1736350472753,0.93338682,94783.0,94782.0,3.98188363]
[1736350472994,1.00290682,94783.0,94782.0,3.98188363]
[1736350473192,1.10290682,94783.0,94782.0,3.98388363]
[1736350473488,1.10290682,94783.0,94782.0,3.98188363]
[1736350473786,1.10720658,94783.0,94782.0,3.98188363]
[1736350474000,1.11120658,94783.0,94782.0,3.98188363]
[1736350474133,1.20820658,94783.0,94782.0,3.98188363]
[1736350474563,1.20820658,94783.0,94782.0,3.96078263]
[1736350474783,1.30820658,94783.0,94782.0,3.85527763]
[1736350474979,1.03538682,94783.0,94782.0,3.85527763]
[1736350475185,1.10490682,94783.0,94782.0,3.85527763]
[1736350475383,1.03538682,94783.0,94782.0,3.85527763]
[1736350475625,1.10490682,94783.0,94782.0,3.85527763]
[1736350475843,0.78538682,94783.0,94782.0,3.85527763]
[1736350476044,0.77330682,94783.0,94782.0,3.85527763]
[1736350476251,0.87760658,94783.0,94782.0,3.85527763]
[1736350476626,0.87760658,94783.0,94782.0,3.32676748]
[1736350476871,0.77330682,94783.0,94782.0,3.32676748]
[1736350478177,0.92330682,94783.0,94782.0,3.32676748]
[1736350480059,0.65588682,94783.0,94782.0,3.32676748]
[1736350480264,0.32995402,94783.0,94782.0,3.32676748]
[1736350480668,0.32995402,94783.0,94782.0,3.33725409]
[1736350480884,0.32995402,94783.0,94782.0,3.36280075]
[1736350481055,0.32895402,94783.0,94782.0,3.36280075]
[1736350481288,0.32895402,94783.0,94782.0,3.54220051]
[1736350481693,0.32995402,94783.0,94782.0,3.54220051]
[1736350481895,0.32995402,94783.0,94782.0,3.40441414]
[1736350482522,0.32995402,94783.0,94782.0,3.5317139]
[1736350482523,0.32895402,94783.0,94782.0,3.5317139]
[1736350483168,0.13389593,94783.0,94782.0,3.9512339]
[1736350483371,0.00015195,94807.0,94803.0,0.210962]
[1736350483570,0.00015195,94807.0,94788.0,0.1]
[1736350483774,0.00015195,94807.0,94804.0,0.00748929]
[1736350483973,0.00015195,94807.0,94784.0,0.25]
[1736350483974,0.210957,94806.0,94786.0,0.210999]
[1736350484179,0.0010436,94805.0,94782.0,3.39977415]
[1736350484385,0.210968,94801.0,94782.0,3.39977415]
[1736350484587,0.210979,94796.0,94783.0,0.00663314]
[1736350484787,0.210979,94796.0,94788.0,0.004]
[1736350484788,0.001,94790.0,94788.0,0.004]
[1736350484958,0.211994,94789.0,94788.0,0.004]
[1736350485190,0.84374376,94789.0,94788.0,0.004]
[1736350485462,0.84374376,94789.0,94782.0,3.32167415]
[1736350485463,0.212008,94783.0,94782.0,3.32167415]
[1736350485679,0.739458,94783.0,94782.0,3.32267415]
[1736350485907,0.52745,94783.0,94782.0,3.32267415]
[1736350486305,0.52745,94783.0,94782.0,3.44997391]
[1736350486853,0.52745,94783.0,94782.0,3.44897391]
[1736350487461,0.52745,94783.0,94782.0,3.53666663]
[1736350487683,0.52745,94783.0,94782.0,3.63466663]
[1736350488078,0.52745,94783.0,94782.0,3.54505662]
[1736350488689,0.52745,94783.0,94782.0,3.54205662]
[1736350488867,0.52745,94783.0,94782.0,3.33406414]
[1736350489525,0.52745,94783.0,94782.0,3.4613639]
[1736350489738,0.52745,94783.0,94782.0,3.6773739]
[1736350490125,0.52745,94783.0,94782.0,3.6723739]
[1736350490333,0.52845,94783.0,94782.0,3.6763739]
[1736350490532,0.52845,94783.0,94782.0,3.7813739]
[1736350490914,0.52845,94783.0,94782.0,3.6813739]
[1736350491208,0.52745,94783.0,94782.0,3.4563639]
[1736350491404,0.52745,94783.0,94782.0,3.35706414]
[1736350491686,0.52845,94783.0,94782.0,3.36606414]
[1736350491879,0.52845,94783.0,94782.0,3.6763739]
[1736350492136,0.52845,94783.0,94782.0,3.4653639]
[1736350492346,0.52775103,94783.0,94782.0,3.34306414]
[1736350492702,0.52675103,94783.0,94782.0,3.33406414]
[1736350493044,0.52675103,94783.0,94782.0,3.34306414]
[1736350493186,0.52775103,94783.0,94782.0,3.34306414]
[1736350493386,0.52675103,94783.0,94782.0,3.32906414]
[1736350493805,0.52775103,94783.0,94782.0,3.34306414]
[1736350494354,0.52775103,94783.0,94782.0,3.33806414]
[1736350494600,0.52675103,94783.0,94782.0,3.6723739]
[1736350494805,0.52675103,94783.0,94782.0,3.7723739]
[1736350495210,0.52675103,94783.0,94782.0,3.8663739]
[1736350495544,0.52775103,94783.0,94782.0,3.8753739]
[1736350495744,0.52775103,94783.0,94782.0,3.7763739]
[1736350495962,0.52775103,94783.0,94782.0,3.8803739]
[1736350496574,0.49892041,94783.0,94782.0,4.0213739]
[1736350496782,0.48655125,94783.0,94782.0,4.0213739]
[1736350496958,0.44798156,94783.0,94782.0,4.0303739]
[1736350497158,0.43499511,94783.0,94782.0,4.0213739]
[1736350497574,0.43499511,94783.0,94782.0,4.0303739]
[1736350497781,0.43499511,94783.0,94782.0,4.0163739]
[1736350497956,0.43499511,94783.0,94782.0,4.0203739]
[1736350498159,0.43499511,94783.0,94782.0,4.0293739]
[1736350498476,0.43499511,94783.0,94782.0,4.0163739]
[1736350498886,0.43599511,94783.0,94782.0,4.0233739]
[1736350499117,0.43405084,94783.0,94782.0,4.0233739]
[1736350499322,0.00015195,94807.0,94806.0,0.559957]
[1736350499570,0.00015195,94807.0,94806.0,0.73405676]
[1736350499773,0.00015195,94807.0,94806.0,0.74128236]
[1736350499946,0.00015195,94807.0,94806.0,0.67148236]
[1736350500148,0.00015195,94807.0,94806.0,0.74128236]
[1736350500379,0.00015195,94807.0,94806.0,0.76428236]
[1736350501031,0.01066008,94847.0,94832.0,0.1]
[1736350501262,0.01066008,94847.0,94833.0,0.02799501]
[1736350501478,0.0001526,94848.0,94837.0,0.210886]
[1736350501694,0.0001526,94848.0,94845.0,0.210869]
[1736350501899,0.09292774,94863.0,94855.0,0.199]
[1736350502069,0.09292774,94863.0,94862.0,0.210832]
[1736350502307,0.01069395,94882.0,94862.0,0.31513176]
[1736350502308,0.09292774,94876.0,94862.0,0.31513176]
[1736350502517,0.09292774,94876.0,94866.0,0.210821]
[1736350502724,0.09292774,94876.0,94867.0,0.10429976]
[1736350502935,0.09292774,94876.0,94867.0,0.11127502]
[1736350503140,0.09292774,94876.0,94868.0,0.0111275]
[1736350503339,0.09292774,94876.0,94869.0,0.210817]
[1736350503545,0.09292774,94876.0,94875.0,0.210803]
[1736350503751,0.09292774,94876.0,94875.0,0.10429976]
[1736350503952,0.0493,94893.0,94875.0,0.10429976]
[1736350503953,0.0493,94893.0,94875.0,0.11122031]
[1736350504124,0.00032354,94878.0,94876.0,0.10429976]
[1736350504358,0.00032354,94878.0,94877.0,0.03220303]
[1736350504567,0.00032354,94878.0,94877.0,0.72726251]
[1736350504773,0.0001706,94902.0,94901.0,0.483745]
[1736350504981,0.0001706,94902.0,94901.0,0.75684476]
[1736350505155,0.00067898,94902.0,94901.0,0.76414175]
[1736350505384,0.00067898,94902.0,94901.0,0.59758632]
[1736350505588,0.00067898,94902.0,94901.0,0.57458632]
[1736350505794,0.00067898,94902.0,94901.0,0.50478632]
[1736350505994,0.00067898,94902.0,94901.0,0.67358632]
[1736350506265,0.00067898,94902.0,94901.0,0.69658632]
[1736350506471,0.00067898,94902.0,94901.0,0.79658632]
[1736350506672,0.0783,94927.0,94920.0,0.210702]
[1736350506877,0.00015248,94927.0,94922.0,0.15]
[1736350507080,0.00015248,94927.0,94923.0,0.06976]
[1736350507323,0.00015248,94927.0,94925.0,0.210692]
[1736350507520,0.00015248,94927.0,94926.0,0.12835306]
[1736350507727,0.00015248,94927.0,94926.0,0.10429976]
[1736350507932,0.00015248,94927.0,94923.0,0.00714667]
[1736350508311,0.00015248,94927.0,94911.0,0.233723]
[1736350508513,0.00015248,94927.0,94924.0,0.023]
[1736350508722,0.00015248,94927.0,94926.0,0.125]
[1736350508925,0.00015248,94927.0,94926.0,0.13035296]
[1736350509129,0.00015248,94927.0,94926.0,0.27929976]
[1736350509331,0.00015248,94927.0,94926.0,0.27729976]
[1736350509639,0.00015248,94927.0,94926.0,0.50850279]
[1736350510502,5.981e-05,94927.0,94926.0,0.518865]
[1736350510708,0.0001706,94957.0,94937.0,0.15]
[1736350510932,0.0001706,94957.0,94942.0,0.173]
[1736350511175,0.01038864,94955.0,94943.0,0.10535286]
[1736350511346,0.01038864,94955.0,94944.0,0.03244457]
[1736350511521,0.01038864,94955.0,94945.0,0.10429976]
[1736350511728,0.0001706,94957.0,94945.0,0.48434928]
[1736350511907,0.0001706,94957.0,94945.0,0.48329617]
[1736350512297,0.0001706,94957.0,94945.0,0.25599641]
[1736350512466,0.0001706,94957.0,94945.0,0.7909129]
[1736350512855,0.0001706,94957.0,94945.0,0.4802649]
[1736350513054,0.0001706,94957.0,94945.0,0.5802649]
[1736350513259,0.0001706,94957.0,94945.0,0.6032649]
[1736350514055,0.0001706,94957.0,94945.0,0.6122649]
[1736350514280,0.0001706,94957.0,94945.0,0.6032649]
[1736350514747,0.0001706,94957.0,94945.0,0.6122649]
[1736350514934,0.0001706,94957.0,94956.0,0.582623]
[1736350515134,0.00032299,94957.0,94956.0,0.71912579]
[1736350515336,0.00032299,94957.0,94956.0,0.7957671]
[1736350515497,0.00032299,94957.0,94956.0,0.5154241]
[1736350515699,0.00032299,94957.0,94956.0,0.2934241]
[1736350515908,0.00032299,94957.0,94956.0,0.12203173]
[1736350516323,0.00032299,94957.0,94956.0,0.34508463]
[1736350516523,0.00032299,94957.0,94956.0,0.45003173]
[1736350517208,0.0001704,94965.0,94964.0,0.199]
[1736350517424,0.0001706,94987.0,94964.0,0.199]
[1736350517425,0.0001706,94987.0,94986.0,0.272]
[1736350517635,0.00032297,94987.0,94986.0,0.61066736]
[1736350518034,0.0001706,94997.0,94988.0,0.349]
[1736350518239,0.0001706,94997.0,94988.0,0.45329976]
[1736350518635,0.0001706,94997.0,94988.0,0.54601976]
[1736350518792,0.0001706,94997.0,94988.0,0.27729976]
[1736350519148,0.0001706,94997.0,94986.0,0.004]
[1736350519149,0.0458,94993.0,94986.0,0.004]
[1736350519351,0.0784,94988.0,94986.0,0.004]
[1736350519555,0.0784,94988.0,94970.0,0.099]
[1736350519808,0.0784,94988.0,94971.0,0.10429976]
[1736350520009,0.0784,94988.0,94966.0,0.00105281]
[1736350520010,0.001,94982.0,94966.0,0.00015237]
[1736350520134,0.0784,94988.0,94972.0,0.210586]
[1736350520339,0.0784,94988.0,94980.0,0.210569]
[1736350520541,0.0784,94988.0,94982.0,0.173]
[1736350520766,0.0001706,94989.0,94988.0,0.023]
[1736350520949,0.0001706,94989.0,94988.0,0.12729976]
[1736350521148,0.0001706,94989.0,94988.0,0.33910954]
[1736350521527,0.0001706,94989.0,94988.0,0.53810954]
[1736350521730,0.0001706,94997.0,94996.0,0.582535]
[1736350521936,0.0001708,95014.0,95008.0,0.099]
[1736350522139,0.0001708,95014.0,95013.0,0.383497]
[1736350522334,0.0001708,95014.0,95013.0,0.52345134]